Cogmind - Beta 14 @@@ ROGUE MODE // 2024.12.24 @ 08:40:56 Player: Dosh Result: Destroyed by WK-N5D(E) with Overtuned Barrage Gun Performance ------------- Evolutions (0) 0 Regions Visited (4) 800 Robots Destroyed (39) 195 Value Destroyed (1085) 1085 Prototype IDs (14) 280 Alien Tech Used (0) 0 Bonus (300) 300 TOTAL SCORE: 2660 Bonus ------- Registered with UFD 300 Cogmind --------- Core Integrity 0/250 Matter 273/300 Energy 80/100 System Corruption 0% Temperature Cool (0) Movement Rolling (130) Ox2 Location -8/Scraptown Parts ------- > --- POWER (1) -------- (None) > --- PROPULSION (2) --- Subdweller Monowheel > --- UTILITY (2) ------ High-capacity Storage Unit Core Shielding > --- WEAPON (2) ------- Heavy Battle Rifle > --- INVENTORY (20) --- Ion Engine Arachnoskeleton Ballwheel Improved Heat Sink High-capacity Matter Pod (200) Advanced Targeting Computer Hardened Heavy Armor Plating Battle Cannon Datajack CPS Tube (2) CPS Tube (2) Vortex Trap Peak State ------------ > --- POWER ------------ Ion Engine > --- PROPULSION ------- Armored Huge Wheel > --- UTILITY ---------- High-capacity Storage Unit Core Shielding > --- WEAPON ----------- Heavy Battle Rifle Battle Cannon > --- INVENTORY -------- Ion Engine Light Treads Light Treads Light Treads Spiked Treads Arachnoskeleton Subdweller Monowheel Improved Heat Sink High-capacity Matter Pod Advanced Targeting Computer Hardened Heavy Armor Plating Battle Cannon Datajack CPS Tube CPS Tube [Rating: 22] Favorites ----------- Power Ion Engine Engine Ion Engine Propulsion Light Treads Treads Light Treads Wheel Armored Huge Wheel Utility Core Shielding Device Improved Heat Sink Storage Large Storage Unit Protection Core Shielding Weapon Battle Cannon Energy Gun Small Laser Ballistic Gun Heavy Battle Rifle Ballistic Cannon Battle Cannon Build | -11 -10 -10 -8 -8 ------- Run | Yrd Mat Sub Rec Scr Slots Evolved . | . . . . . Power . | . . . . . Propulsion . | . . . . . Utility . | . . . . . Weapon . | . . . . . Parts Attached 30 | 6 9 12 1 2 Power 3 | 1 1 1 . . Engine 3 | 1 1 1 . . Core . | . . . . . Reactor . | . . . . . Propulsion 9 | 2 1 4 . 2 Treads 7 | 2 1 4 . . Leg . | . . . . . Wheel 2 | . . . . 2 Hover . | . . . . . Flight . | . . . . . Utility 6 | 1 4 . 1 . Device 1 | . 1 . . . Storage 3 | 1 1 . 1 . Processor . | . . . . . Hackware . | . . . . . Protection 2 | . 2 . . . Artifact . | . . . . . Weapon 12 | 2 3 7 . . Energy Gun 2 | 1 . 1 . . Energy Cannon . | . . . . . Ballistic Gun 5 | 1 1 3 . . Ballistic Cannon 5 | . 2 3 . . Launcher . | . . . . . Special Weapon . | . . . . . Impact Weapon . | . . . . . Slashing Weapon . | . . . . . Piercing Weapon . | . . . . . Special Melee Weapon . | . . . . . Unidentified Prototypes . | . . . . . Parts Lost 8 | . . 5 . 3 Power 1 | . . . . 1 Propulsion 4 | . . 3 . 1 Utility . | . . . . . Weapon 3 | . . 2 . 1 Highest Loss Streak 3 | . . 2 . 3 To Critical Strikes . | . . . . . Average Slot Usage (%) 94 | . 92 99 100 86 Engine 13 | . 14 14 14 13 Treads 20 | . 28 27 28 2 Wheel 3 | . . . . 12 Storage 14 | . 14 14 14 14 Protection 12 | . 6 14 14 14 Energy Gun 1 | . 6 . . . Ballistic Gun 12 | . 17 6 14 14 Ballistic Cannon 13 | . 4 21 14 13 Peak Build Rating 22 | 6 9 15 16 22 Average Rating 14 | 5 7 11 15 21 On Entrance 9 | . 6 8 15 16 Naked Turns . | . . . . . Heaviest Build 53 | 10 32 33 53 53 Greatest Support 40 | 40 40 40 40 40 Greatest Overweight (x) 1 | . . 1 1 1 Average Overweight (x) . | . . . . 1 Largest Inventory Capacity 20 | 8 15 15 20 20 Average Capacity 16 | 7 12 15 17 20 Most Carried 20 | 1 13 15 15 20 Average Carried 13 | . 5 13 14 18 Final Capacity 20 | 8 15 15 20 20 Final Carried 18 | 1 13 15 15 18 Class Distribution -------------------- 100% | Mutant Dominant Class ---------------- Mutant | -10/Materials Mutant | -10/Subcaves Mutant | -8/Recycling Mutant | -8/Scraptown Resources | -11 -10 -10 -8 -8 ----------- Run | Yrd Mat Sub Rec Scr Matter Collected 1666 | 236 396 954 80 . Remotely . | . . . . . Salvage Created 1173 | . 518 319 232 104 Parts 75 | . 39 20 10 6 Haulers Intercepted 2 | . 2 . . . Recyclers Shooed 1 | . 1 . . . Parts Field Recycled . | . . . . . Retrieved Matter . | . . . . . Parts Self-Destructed 12 | . . 12 . . Prevented . | . . . . . Kills | -11 -10 -10 -8 -8 ------- Run | Yrd Mat Sub Rec Scr Combat Hostiles Destroyed 32 | . 12 15 3 2 Guns 20 | . 12 5 3 . Cannons 10 | . . 10 . . AOE 2 | . . . . 2 Classes Destroyed 10 | . 6 3 . 1 Worker 1 | . 1 . . . Hauler 2 | . 2 . . . Recycler 2 | . 1 . 1 . Turret 1 | . . 1 . . Watcher 1 | . 1 . . . Swarmer 10 | . 6 4 . . Grunt 6 | . 6 . . . Sentry 4 | . . 1 3 . Subdweller 10 | . . 10 . . Elite 2 | . . . . 2 Best Kill Streak 5 | . 3 5 2 2 Combat Bots Only 4 | . 3 4 1 2 Max Kills in Single Turn 2 | . 1 1 1 2 Gunslinging . | . . . . . Exploded 2 | . . . . 2 Melee . | . . . . . Uniques/NPCs Destroyed . | . . . . . Combat | -11 -10 -10 -8 -8 -------- Run | Yrd Mat Sub Rec Scr Hostile Shots Fired 177 | . 59 103 8 7 Missed 52 | . 15 34 2 1 Damage Taken 1929 | . 508 1063 89 269 Core 259 | . 86 81 36 56 Absorbed by Shields . | . . . . . Redirected to Shielding 39 | . 2 17 8 12 Core Remaining (%) 100 | 100 . . . . Volleys Fired 156 | . 62 82 12 . Largest 2 | . 2 2 2 . Hottest 74 | . 60 74 72 . Shots Fired 312 | . 124 164 24 . Gun 167 | . 124 31 12 . Cannon 145 | . . 133 12 . Launcher . | . . . . . Special . | . . . . . Kinetic 284 | . 96 164 24 . Thermal 28 | . 28 . . . Explosive . | . . . . . Electromagnetic . | . . . . . Robot Hit Streak 14 | . 7 14 5 . Robot Miss Streak 6 | . 6 2 1 . Penetration Max . | . . . . . Secondary Targets 2 | . 2 . . . Max Gunslinging Chain 1 | . 1 . . . Shots Hit Robots 158 | . 70 78 10 . Core Hits 72 | . 33 32 5 2 Critical Kills . | . . . . . Critical Parts Destroyed . | . . . . . Critical Strikes 2 | . . 2 . . Blast 2 | . . 2 . . Melee Attacks . | . . . . . Impact . | . . . . . Slashing . | . . . . . Piercing . | . . . . . Sneak Attacks . | . . . . . Combat Hostiles . | . . . . . Follow-up Attacks . | . . . . . Damage Inflicted 2735 | . 646 1466 267 356 Guns 1122 | . 626 357 139 . Cannons 1203 | . . 1090 113 . Explosions 356 | . . . . 356 Melee . | . . . . . Ramming 54 | . 20 19 15 . Kinetic 2136 | . 437 1447 252 . Thermal 189 | . 189 . . . Explosive . | . . . . . Electromagnetic . | . . . . . Impact . | . . . . . Slashing . | . . . . . Piercing . | . . . . . Entropic 356 | . . . . 356 Highest Corruption . | . . . . . Average Corruption . | . . . . . Corruption Purged . | . . . . . Corruption Blocked . | . . . . . Overload Shots . | . . . . . Overflow Damage 50 | . . 11 . 39 Projectiles 11 | . . 11 . . Explosions 39 | . . . . 39 Melee . | . . . . . Knockbacks 15 | . . 14 1 . Impact 1 | . . . 1 . Kinetic 14 | . . 14 . . Secondary . | . . . . . Self-Inflicted Damage 149 | . . . . 149 Shots 1 | . . . . 1 Rammed 18 | . 9 8 1 . Targets Rammed 19 | . 10 8 1 . Kicked . | . . . . . Crushed 1 | . 1 . . . Highest Temperature 156 | . 156 2 54 . Average Temperature 30 | . 34 2 21 . Received Heat Transfer 507 | . 213 258 36 . Siege Activations . | . . . . . Robots Corrupted . | . . . . . Combat Hostiles . | . . . . . Parts Fried . | . . . . . Impact Corruptions . | . . . . . Robots Melted . | . . . . . Combat Hostiles . | . . . . . Parts Melted 2 | . 1 1 . . Heat Transferred 425 | . 425 . . . Parts Sabotaged . | . . . . . Parts Stolen . | . . . . . Parts Stripped . | . . . . . Power Chain Reactions . | . . . . . Alert | -11 -10 -10 -8 -8 ------- Run | Yrd Mat Sub Rec Scr Peak Influence 265 | . 265 . 261 . Initial 44 | . . . 44 . Average 103 | . 124 . 90 . Maximum Alert Level 1 | . 1 . 1 . Low Security (%) 88 | 100 85 . 90 . Level 1 11 | . 14 . 9 . Level 2 . | . . . . . Level 3 . | . . . . . Level 4 . | . . . . . Level 5 . | . . . . . High Security . | . . . . . Max Security . | . . . . . Squads Dispatched 1 | . 1 . . . Investigation 1 | . 1 . . . Extermination . | . . . . . Reinforcement . | . . . . . Assault . | . . . . . Garrison . | . . . . . Intercept . | . . . . . Searches Triggered . | . . . . . Construction Impeded . | . . . . . Haulers Reinforced . | . . . . . Active Scanning Responses . | . . . . . Cargo Convoy Interrupts . | . . . . . Stealth | -11 -10 -10 -8 -8 --------- Run | Yrd Mat Sub Rec Scr Distress Signals 2 | . 2 . . . Communications Jammed . | . . . . . Distress Signals . | . . . . . Times Spotted 49 | . 25 18 3 3 Peak Tracking Total 8 | . 8 4 1 4 Tactical Retreats 8 | . 4 4 . . Traps | -11 -10 -10 -8 -8 ------- Run | Yrd Mat Sub Rec Scr Traps Triggered 3 | . 1 1 . 1 Indirectly . | . . . . . Trap Hack Attempts . | . . . . . Triggered . | . . . . . Disarmed . | . . . . . Reprogrammed . | . . . . . Reused . | . . . . . Traps Extracted . | . . . . . Installed 1 | . . . . 1 Triggered . | . . . . . Most Traps Carried 2 | . . . . 2 Machines | -11 -10 -10 -8 -8 ---------- Run | Yrd Mat Sub Rec Scr Machines Disabled 6 | . . 3 . 3 Max in Single Turn 3 | . . 1 . 3 Machines Repaired . | . . . . . Machines Dismantled . | . . . . . Machines Sabotaged . | . . . . . Overloaded Fab Kills . | . . . . . Hacking | -11 -10 -10 -8 -8 --------- Run | Yrd Mat Sub Rec Scr Machines Accessed 22 | . 7 1 11 3 Terminals 12 | . 7 . 5 . Fabricators . | . . . . . Repair Stations . | . . . . . Recycling Units 6 | . . . 6 . Scanalyzers . | . . . . . Garrison Access . | . . . . . Total Hacks 47 | . 16 1 20 10 Successful 32 | . 7 1 14 10 Failed 14 | . 8 . 6 . Catastrophic 3 | . 2 . 1 . Database Lockouts 1 | . 1 . . . Manual 35 | . 18 . 17 . Terminals 29 | . 16 . 13 . Fabricators . | . . . . . Repair Stations . | . . . . . Recycling Units 7 | . . . 7 . Scanalyzers . | . . . . . Garrison Access . | . . . . . Terminal Hacks 13 | . 1 1 1 10 Record 3 | . . . . 3 Robot Schematic 1 | . . . 1 . Robot Analysis 7 | . . . . 7 Prototype ID Bank 1 | . 1 . . . Derelict Proto ID Bank 1 | . . 1 . . Fabricator Hacks . | . . . . . Repair Station Hacks . | . . . . . Recycling Unit Hacks . | . . . . . Scanalyzer . | . . . . . Garrison Access Hacks . | . . . . . Unauthorized Hacks 19 | . 6 . 13 . Terminals 13 | . 6 . 7 . Botnet 3 | . 1 . 2 . Skim 10 | . 5 . 5 . Fabricators . | . . . . . Repair Stations . | . . . . . Recycling Units 6 | . . . 6 . Tunnel 6 | . . . 6 . Scanalyzers . | . . . . . Garrison Access . | . . . . . Data Cores Recovered . | . . . . . Used . | . . . . . Hacking Detections 11 | . 7 . 4 . Full Trace Events 1 | . 1 . . . Feedback Events . | . . . . . Feedback Blocked . | . . . . . Robot Schematics Acquired 1 | . . . 1 . Robots Built . | . . . . . Authchips . | . . . . . Time . | . . . . . Total Robot Build Rating . | . . . . . Part Schematics Acquired . | . . . . . Parts Built . | . . . . . Authchips . | . . . . . Time . | . . . . . Total Part Build Rating . | . . . . . Parts Repaired . | . . . . . Time . | . . . . . Parts Recycled . | . . . . . Recycled Matter . | . . . . . Retrieved Matter . | . . . . . Retrieved Components . | . . . . . Parts Scanalyzed . | . . . . . Part Schematics Acquired . | . . . . . Parts Damaged . | . . . . . Bothacking | -11 -10 -10 -8 -8 ------------ Run | Yrd Mat Sub Rec Scr Used RIF Installer . | . . . . . Robots Hacked . | . . . . . Non-combat . | . . . . . Combat . | . . . . . Robot Hacks Applied . | . . . . . Relay Couplers Released . | . . . . . Fabnet Peak Effective % . | . . . . . Robots Rewired . | . . . . . Allies Hacked . | . . . . . Hacks Repelled . | . . . . . Allies | -11 -10 -10 -8 -8 -------- Run | Yrd Mat Sub Rec Scr Total Allies . | . . . . . Largest Group . | . . . . . Highest-Rated Group . | . . . . . Highest-Rated Ally . | . . . . . Total Orders . | . . . . . Ally Attacks . | . . . . . Total Damage . | . . . . . Kills . | . . . . . Allies Corrupted . | . . . . . Allies Melted . | . . . . . Intel | -11 -10 -10 -8 -8 ------- Run | Yrd Mat Sub Rec Scr Robot Analysis Total 7 | . . . . 7 Derelict Logs Recovered 1 | . . . . 1 Drone Launches . | . . . . . Drone Recoveries . | . . . . . Exploration | -11 -10 -10 -8 -8 ------------- Run | Yrd Mat Sub Rec Scr Turns Passed 5728 | 96 1258 1444 1263 1667 Spaces Moved 3218 | 55 647 719 632 1165 Core 1 | 1 . . . . Treads 2103 | 54 647 719 632 51 Legs . | . . . . . Wheels 1114 | . . . . 1114 Hover . | . . . . . Flight . | . . . . . Fastest Speed 50 | 50 160 160 160 115 Average Speed 152 | 158 160 160 191 120 Slowest Speed 250 | 160 160 240 250 250 Overloaded Moves . | . . . . . Propulsion Burnouts . | . . . . . Robots Hopped . | . . . . . Cave-ins Triggered . | . . . . . Exploration Rate (%) 64 | 4 94 46 98 79 Regions Visited 4 Branch Regions 3 Pre-discovered Areas 9 | . 2 . 7 . Known Exits Taken 1 | . . . 1 . Unknown Exits Taken 3 | 1 1 1 . . Scrap Searched 9 | . . 9 . . Spaces Dug 4 | . . . 4 . Terrain Destroyed 78 | . . 2 5 71 Melee . | . . . . . Projectile 7 | . . 2 5 . AOE 71 | . . . . 71 Terrain Rammed . | . . . . . Walls Destroyed . | . . . . . Machines Disabled . | . . . . . Actions | -11 -10 -10 -8 -8 --------- Run | Yrd Mat Sub Rec Scr Total 3748 | 61 758 842 659 1428 Wait 282 | . 15 13 10 244 Move 3214 | 54 646 718 631 1165 Hop . | . . . . . Pick Up 24 | 1 10 5 2 6 Fast Attach 12 | 6 4 1 . 1 Attach 5 | . . 4 . 1 Detach 5 | . 3 . . 2 Swap 13 | . 5 7 1 . Drop 17 | . 3 4 2 8 Fire 156 | . 62 82 12 . Melee . | . . . . . Ram . | . . . . . Kick . | . . . . . Crush 19 | . 10 8 1 . Escape Stasis . | . . . . . Rewire . | . . . . . Trap 1 | . . . . 1 Miscellaneous . | . . . . . Route ------- -11/Scrapyard -10/Materials (discovered 5 exits: [*Mat x3] / [*Min] / *Sub) -10/Subcaves (discovered 2 exits: [*Mat] / *Rec) -8/Recycling (discovered 2 exits: *Fac / *Scr) -8/Scraptown (discovered 2 exits: *Fac x2) History --------- Turn | Location | Event 13 | -11/Scrapyard | Discovered new exit (range 15) 97 | -11/Scrapyard | Entered Materials 307 | -10/Materials | Build established: Mutant 452 | -10/Materials | Discovered new exit (range 10) 706 | -10/Materials | Discovered new exit (range 8) 787 | -10/Materials | Learned location of Mines (-10) 794 | -10/Materials | Discovered new exit (range 16) 866 | -10/Materials | Learned Storage emergency access door positions 938 | -10/Materials | Discovered new exit (range 16) 1075 | -10/Materials | Learned Storage garrison access intel 1121 | -10/Materials | Learned 2 Storage zone layouts 1177 | -10/Materials | Learned 2 Storage zone layouts 1208 | -10/Materials | Central database locked down 1241 | -10/Materials | Learned Materials stockpile data 1344 | -10/Materials | Discovered new exit (range 6) 1355 | -10/Materials | Entered Subcaves 1357 | -10/Subcaves | Ambushed by Subdwellers from Twisted Machinery 1497 | -10/Subcaves | Shifting Twisted Machinery released Battle Cannon 1701 | -10/Subcaves | A swath of the cavern ceiling suddenly collapsed 1854 | -10/Subcaves | Ambushed by Subdweller buried in earth 1990 | -10/Subcaves | A swath of the cavern ceiling suddenly collapsed 2112 | -10/Subcaves | Visited 4L-MR0's lab 2112 | -10/Subcaves | Core integrity fell below 50% 2182 | -10/Subcaves | Found Arachnoskeleton 2450 | -10/Subcaves | Discovered new exit (range 13) 2525 | -10/Subcaves | Discovered new exit (range 13) 2799 | -10/Subcaves | Entered Recycling 3157 | -8/Recycling | Discovered new exit (range 9) 3387 | -8/Recycling | Core integrity fell below 20% 3395 | -8/Recycling | Learned 2 Storage zone layouts 3510 | -8/Recycling | Identified exit to Scraptown 3553 | -8/Recycling | Learned Storage machine intel 3585 | -8/Recycling | Learned Factory trap positions 3605 | -8/Recycling | Learned location of 1 exit from Recycling 3616 | -8/Recycling | Learned Storage stockpile data 3713 | -8/Recycling | Learned 2 Lower Caves zone layouts 3999 | -8/Recycling | Scanned before Scraplab entrance 4034 | -8/Recycling | Entered Scraplab 4062 | -8/Recycling | Entered Scraptown 4063 | -8/Scraptown | Identified exit to Factory 4288 | -8/Scraptown | Visited UFD Registry 4288 | -8/Scraptown | Registered with UFD as "Thunderpod" 4305 | -8/Scraptown | Visited Awakened 4344 | -8/Scraptown | Visited Junk Repository 4415 | -8/Scraptown | Visited Artisan Demo Area 4475 | -8/Scraptown | Visited Red Mages 4511 | -8/Scraptown | Visited Fellowship of the Rings 4697 | -8/Scraptown | Scanned Subdweller tech in exchange for log data 4701 | -8/Scraptown | Learned Research interactive machine intel 4798 | -8/Scraptown | Visited Science Guys 4877 | -8/Scraptown | Visited Botcube Research 4895 | -8/Scraptown | Visited Scrap Suit Storage 4911 | -8/Scraptown | Visited DA-N13 Charitable Foundation 4947 | -8/Scraptown | Visited Junk Repository 5002 | -8/Scraptown | Visited Junk Cannon Lab 5031 | -8/Scraptown | Visited Analyses Database 5397 | -8/Scraptown | Visited Curators Association 5463 | -8/Scraptown | Warned about trapping Scraptown 5714 | -8/Scraptown | Attacked by Scraptown defenders 5722 | -8/Scraptown | Found Ballwheel 5729 | -8/Scraptown | Destroyed by WK-N5D(E) with Overtuned Barrage Gun Last Messages --------------- 05463_ ANNOUNCEMENT: Tracking potentially hostile trap installation. 05540_ CB-SDF(c): "Come one, come all! See for yourself a fine selection of the many wondrous pieces in our collection!" 05714_ Triggered Vortex Trap. 05714_ A wave of accelerated entropy washes over the area. 05714_ Battle Cannon destroyed. 05714_ Destroyed Battle Cannon. 05714_ Ion Engine destroyed. 05714_ Destroyed Ion Engine. 05714_ ANNOUNCEMENT: Intruder alert! Defend Scraptown! 05714_ ZB-IS9(E) destroyed. 05714_ 8V-CRU(E) destroyed. 05714_ Enclosure breached. 05714_ C-Scrubber disabled. 05714_ Machine disabled. 05714_ Dropped Lgt. Treads. 05716_ Dropped Spk. Treads. 05722_ Acquired Ballwheel. 05727_ Autobeam Turret pops up from the ground. 05728_ Arm. Huge Wheel destroyed. Map ----- +----------------------------------------------------+ | | | | | | | | | | | | | | | | | ?????????????????????????????????????????????????? | | ?????????????????????????????????????????????????? | | ?????????????????????????????????????????????????? | | ?????????????????????????????????????????????????? | | ?????????????????????????????????????????????????? | | ?????????????????????????????????????????????????? | | ?????????????????????????????????????????????????? | | ?????????????????????????????????????????????????? | | ?????????????????????????????????????????????????? | | ?????????????????????????????????????????????????? | | ?????????????????????????????????????????????????? | | ??????????????????????#######????????????????????? | | ????????????????????### ; ###??????????????????? | | ?????????????####???# ; ; #??????????????????? | | ????????????## ##?## ; < ; ##?????????????????? | | ?"" ##!!"#### ###;;; =[;; #?????????????????? | | ? E !=%; #?????????????????? | | ? E =@%; #?????????????????? | | ?????######## ###;;;;==!; #?????????????????? | | ????????????## ##?# #?????????????????? | | ?????????????# #??##;;;;;;;; ##?????????????????? | | ?????????????# #??#";;; ; ;; #??????????????????? | | ?????????????# #### " ;;;###??????????????????? | | ?????????????# #" """ "#????????????????????? | | ?????????????# ##"" ""##????????????????????? | | ?????????????# ##!" "!#?????????????????????? | | ???#######"### ##"" ""##????????????????????? | | #??#"""" ""# #" t "#????????????????????? | | #??#""" ""# ##"" c ""##????????????????????? | | #??#""& " # ##]" "!#?????????????????????? | | #???""" "# ##"" ""#?????????????????????? | | ?????? ??# #" "#????????????????????? | | ???????# #???# ## ##########????????????????????? | | ######## ##### ## ##???######???????????????????? | | """""""" """"" "" "#???"""""#""#????????????????? | | "#?? !! !! !#????????????????? | | "#?? #????????????????? | | "#? #????????????????? | | "## X" #????????????????? | | #???????????????????? | | """""""""""""" "## !! ! #???????????????????? | | """""""""""""" "#? #"""""#???????????????????? | +----------------------------------------------------+ Best States ------------- Heat Dissipation 39 Energy Generation 10 Energy Capacity 250 Matter Stores 300 Matter Capacity 300 Sight Range 16 Terrain Scan Density 10 Armor Coverage 150 Core Shielding 20 Evasion (%) 40 Recoil Reduction 2 Item Schematics ----------------- None Robot Schematics ------------------ L-31 Rogue | -8/Recycling | Hacked Fabricated ------------ Nothing Alien Tech Used ----------------- None Achievements -------------- None Challenges ------------ None Game ------ Seed FluxComponentPendant Manual? 0 Play Time 00:20:26 Cumulative 556.5 hours Start 2024.12.22 @ 18:13:57 End 2024.12.24 @ 08:40:56 Sessions 3 Manual Loads 0 Difficulty Rogue Special Mode None Game No. 322 Rogue 322 Adventurer 0 Explorer 0 Win Type - Total 43 Types 29/3/5/1/1/0/2/1/1 Lore% 87 Gallery% 86 Achievement% 86 Wizard Run 0 Options --------- Layout 0 ASCII 0 Keyboard 1 Movement Numpad Keybinds 0 Fullscreen 2 Font 18/SmallcapsGlow Map View 76x50 Zoom Use 0% Tactical HUD 1 Map Filters NONE Filters NONE Steam 1 RUN: b505091b-0af9-43b7-883d-244db21c05ff